bitfinex-derivatives/quotes_ETHF0:USTF0_20250426
["timestamp","ask_amount","ask_price","bid_price","bid_amount"]
[1745660401915,9.14072691,1800.4,1800.3,2.82985]
[1745660402613,9.14072691,1800.4,1800.3,1.11045]
[1745660403009,9.14072691,1800.4,1800.2,1.11049]
[1745660403316,1.6855,1800.3,1800.2,1.11052]
[1745660403612,1.6855,1800.3,1800.1,4.277]
[1745660403813,1.6855,1800.3,1800.1,5.38752]
[1745660404010,1.6855,1800.3,1800.2,1.11052]
[1745660406802,9.8933,1800.3,1799.9,1.11069]
[1745660407009,4.53586,1800.2,1799.9,1.11069]
[1745660407209,1.7954,1800.1,1799.9,1.11069]
[1745660407408,1.7954,1800.1,1799.9,1.11067]
[1745660407409,2.906,1800.1,1799.9,1.11067]
[1745660407809,1.7954,1800.1,1800.0,1.11064]
[1745660409014,2.90601,1800.1,1799.9,1.11067]
[1745660410215,1.11066,1800.0,1799.8,5.38672]
[1745660410415,1.6691,1799.9,1799.8,5.38672]
[1745660411312,1.1109,1799.6,1799.0,5.98592]
[1745660411616,1.6691,1799.5,1799.2,4.277]
[1745660411916,4.49095,1799.5,1799.3,1.11103]
[1745660412409,1.11101,1799.4,1799.2,5.3881]
[1745660412612,1.7128,1799.3,1799.2,5.3881]
[1745660413816,1.7128,1799.3,1799.2,4.277]
[1745660414112,2.82387,1799.3,1799.2,4.277]
[1745660414513,1.7128,1799.3,1799.2,4.277]
[1745660414921,2.82387,1799.3,1799.2,4.277]
[1745660415217,1.7128,1799.3,1799.2,5.38813]
[1745660416018,1.7128,1799.3,1799.2,4.277]
[1745660416519,1.7128,1799.3,1799.2,5.38813]
[1745660417116,2.82187,1799.5,1799.2,4.277]
[1745660417419,3.2078,1799.7,1799.5,1.11095]
[1745660417420,1.7979,1799.6,1799.5,1.11095]
[1745660418320,2.79475,1799.9,1799.7,1.11081]
[1745660418511,2.84646,1799.8,1799.7,1.11082]
[1745660418819,2.84646,1799.8,1799.6,8.97324]
[1745660419319,1.11082,1799.7,1799.6,6.0626]
[1745660419522,2.84652,1799.7,1799.6,6.0626]
[1745660419718,2.84652,1799.7,1799.6,4.275]
[1745660420321,6.05432,1799.7,1799.6,4.275]
[1745660420714,1.11095,1799.5,1799.3,5.38505]
[1745660420913,1.7357,1799.4,1799.3,5.38505]
[1745660421419,7.32765569,1799.7,1799.6,1.11089]
[1745660421620,8.98395569,1799.7,1799.6,1.11089]
[1745660422219,7.32765569,1799.7,1799.6,1.11089]
[1745660422522,7.32765569,1799.7,1799.6,2.79179]
[1745660422916,7.32765569,1799.7,1799.6,1.6809]
[1745660423114,8.43847569,1799.7,1799.5,1.6835]
[1745660423325,2.76719,1799.6,1799.5,1.6835]
[1745660423525,1.11095,1799.5,1799.3,8.59284]
[1745660423714,2.76725,1799.5,1799.3,8.59284]
[1745660424018,1.6563,1799.5,1799.3,7.4818]
[1745660424224,1.11101,1799.4,1799.3,4.274]
[1745660424422,1.6563,1799.5,1799.3,4.274]
[1745660424610,2.76729,1799.5,1799.3,5.38505]
[1745660424815,2.76729,1799.5,1799.3,4.274]
[1745660425018,1.11101,1799.4,1799.3,4.274]
[1745660425323,1.7349,1799.4,1799.3,5.38507]
[1745660425516,1.7349,1799.4,1799.3,4.274]
[1745660425717,2.84591,1799.4,1799.3,4.274]
[1745660426321,1.7349,1799.4,1799.2,4.275]
[1745660426522,1.11112,1799.3,1799.2,4.275]
[1745660426917,2.84595,1799.4,1799.2,4.275]
[1745660427115,5.98551,1799.3,1798.5,3.2078]
[1745660427324,3.2078,1798.9,1798.3,7.4828]
[1745660427525,1.11163,1798.4,1798.3,4.275]
[1745660427727,1.11163,1798.4,1798.1,10.16718865]
[1745660427920,1.7644,1798.3,1798.1,11.95756865]
[1745660428223,1.7644,1798.3,1798.2,1.11175]
[1745660428426,1.7644,1798.3,1798.1,1.6771]
[1745660428627,1.7644,1798.3,1798.2,1.11175]
[1745660429125,1.7644,1798.3,1798.2,2.90215]
[1745660429328,9.9722,1798.3,1797.7,3.2078]
[1745660429522,1.6391,1798.2,1797.7,3.2078]
[1745660429726,1.7644,1798.1,1797.9,1.11192]
[1745660430021,1.7644,1798.1,1797.5,7.37829865]
[1745660430022,4.9722,1798.1,1797.5,7.37829865]
[1745660430228,4.31979,1797.9,1797.5,7.37829865]
[1745660430527,2.7738,1797.8,1797.5,7.37829865]
[1745660430723,4.31992,1797.6,1797.5,7.37829865]
[1745660431116,1.11218,1797.5,1797.4,7.52136056]
[1745660431322,1.11218,1797.5,1797.3,22.61947778]
[1745660431323,1.11225,1797.4,1797.3,22.61947778]
[1745660431624,8.59605,1797.4,1797.3,19.28562778]
[1745660431829,13.68243708,1797.4,1797.3,19.56380737]
[1745660432232,13.68243708,1797.4,1797.3,0.27817959]
[1745660432525,1.11259,1796.9,1796.5,0.27817959]
[1745660432722,1.11259,1796.9,1796.6,1.7877]
[1745660432723,3.2078,1796.9,1796.6,1.7877]
[1745660433221,3.2078,1796.9,1796.5,0.27817959]
[1745660433421,3.2078,1796.9,1796.7,0.27817959]
[1745660433630,3.2078,1796.9,1796.8,2.05977959]
[1745660433828,3.2078,1796.9,1796.8,0.27817959]
[1745660434032,12.4848,1796.9,1796.3,0.27817959]
[1745660434222,4.32052,1796.7,1796.5,0.27817959]
[1745660434426,5.87,1797.2,1796.5,0.27817959]
[1745660434628,3.2078,1796.8,1796.7,0.27817959]
[1745660435136,3.2078,1797.2,1796.7,0.27817959]
[1745660435435,3.2078,1797.2,1797.0,0.27817959]
[1745660435730,3.2078,1797.7,1797.1,2.05977959]
[1745660435923,4.31988,1797.7,1797.5,0.27817959]
[1745660436119,4.31988,1797.7,1797.6,2.05977959]
[1745660437126,3.2078,1797.7,1797.6,2.05977959]
[1745660437428,18.51055057,1798.0,1797.6,2.05977959]
[1745660437635,1.11196,1797.9,1797.6,2.05977959]
[1745660437836,18.51055057,1798.0,1797.6,2.05977959]
[1745660438026,1.11206,1797.7,1797.6,2.05977959]
[1745660438229,18.51055057,1798.0,1797.6,2.05977959]
[1745660438427,1.11206,1797.7,1797.6,2.05977959]
[1745660439029,1.11231,1797.3,1797.2,0.27817959]
[1745660439427,1.11228,1797.4,1797.2,0.27817959]
[1745660439627,1.11231,1797.3,1797.2,0.27817959]
[1745660439835,4.32011,1797.3,1797.2,0.27817959]
[1745660440034,3.2078,1797.3,1796.9,0.27817959]
[1745660440222,4.32011,1797.3,1797.2,0.27817959]
[1745660440427,3.2078,1797.3,1797.2,0.27817959]
[1745660440829,1.11237,1797.2,1797.1,0.27817959]
[1745660441227,3.2078,1797.3,1797.1,0.27817959]
[1745660441430,4.32011,1797.3,1797.2,1.91577959]
[1745660442935,3.2078,1797.3,1796.9,0.27817959]
[1745660443234,4.32011,1797.3,1797.0,1.11245]
[1745660443435,4.32011,1797.3,1797.1,1.7753]
[1745660443631,3.2078,1797.3,1797.1,1.7753]
[1745660443829,3.2078,1797.3,1797.2,1.39054959]
[1745660444028,3.2078,1797.8,1797.5,0.27817959]
[1745660444233,3.2078,1797.8,1797.6,1.7753]
[1745660444432,1.11206,1797.7,1797.6,1.7753]
[1745660445034,1.11206,1797.7,1797.6,2.05347959]
[1745660446538,4.31982,1797.8,1797.6,2.05347959]
[1745660447237,1.11206,1797.7,1797.6,2.05347959]
[1745660448144,4.31984,1797.8,1797.6,2.05347959]
[1745660448544,3.2078,1797.8,1797.6,2.05347959]
[1745660448737,3.2078,1797.8,1797.7,1.11206]
[1745660449035,1.11176,1798.2,1797.8,0.27817959]
[1745660449240,4.31953,1798.3,1798.0,1.11187]
[1745660449443,4.31953,1798.3,1798.2,0.27817959]
[1745660449742,1.11157,1798.5,1798.2,0.27817959]
[1745660449935,1.11157,1798.5,1798.4,0.27817959]
[1745660450533,1.11157,1798.5,1798.4,1.96687959]
[1745660453543,1.11155,1798.6,1798.4,3.07849959]
[1745660453732,3.2078,1798.6,1798.4,1.96687959]
[1745660453934,1.11141,1798.8,1798.7,0.27817959]
[1745660454141,4.31921,1798.8,1798.6,0.27817959]
[1745660454541,4.31921,1798.8,1798.6,1.38966959]
[1745660454838,3.2078,1798.8,1798.7,1.38961959]
[1745660455044,3.2078,1798.8,1798.5,3.4751]
[1745660455045,3.2078,1798.8,1798.6,0.27817959]
[1745660455245,3.2078,1798.8,1798.6,1.38966959]
[1745660455747,3.2078,1798.8,1798.7,1.11144]
[1745660455943,3.2078,1798.8,1798.6,0.27817959]
[1745660456144,3.2078,1798.8,1798.6,1.38967959]
[1745660457139,4.31922,1798.8,1798.6,0.27817959]
[1745660457439,4.31918,1798.8,1798.6,0.27817959]
[1745660458145,1.11144,1798.7,1798.6,0.27817959]
[1745660458848,4.31922,1798.8,1798.6,0.27817959]
[1745660459739,3.2078,1798.8,1798.6,0.27817959]
[1745660460145,3.2078,1798.8,1798.7,1.11144]
[1745660460746,3.2078,1798.8,1798.7,1.38961959]
[1745660460946,3.2078,1799.0,1798.9,1.38944959]
[1745660461248,3.2078,1799.0,1798.9,1.38949959]
[1745660461449,3.2078,1799.0,1798.9,0.27817959]
[1745660461640,1.11138,1798.8,1798.7,0.27817959]
[1745660461943,3.2078,1799.0,1798.5,4.58663]
[1745660461944,1.11144,1798.7,1798.6,0.27817959]
[1745660462243,3.2078,1798.8,1798.6,0.27817959]
[1745660462448,4.31921,1798.8,1798.6,0.27817959]
[1745660462639,4.31919,1798.8,1798.6,1.38965959]
[1745660462843,1.11144,1798.7,1798.6,0.27817959]
[1745660463645,1.11171,1798.3,1798.1,0.27817959]
[1745660463840,5.98631,1798.8,1798.1,0.27817959]
[1745660463841,1.11164,1798.4,1798.2,1.11173]
[1745660464048,1.11164,1798.4,1798.2,0.27817959]
[1745660464445,1.11175,1798.2,1798.1,0.27817959]
[1745660464645,1.11175,1798.2,1798.1,1.95607959]
[1745660465550,4.31953,1798.3,1798.1,1.95607959]
[1745660465950,1.11163,1798.4,1798.1,3.06785959]
[1745660466245,1.11163,1798.4,1798.3,0.27817959]
[1745660466439,1.11163,1798.4,1797.8,4.274]
[1745660466644,1.11163,1798.4,1798.1,1.11177]
[1745660466843,1.11163,1798.4,1797.8,4.274]
[1745660467144,1.11163,1798.4,1798.1,1.11176]
[1745660467443,1.11163,1798.4,1798.1,1.11177]
[1745660467644,1.11177,1798.2,1798.0,1.11183]
[1745660467844,1.11177,1798.2,1798.0,1.11186]
[1745660468553,6.06682,1798.3,1798.0,1.11183]
[1745660468748,4.9551,1798.3,1797.9,1.11189]
[1745660468945,1.11188,1798.0,1797.8,5.38596]
[1745660469154,3.2078,1797.9,1797.6,1.7203]
[1745660469351,1.7473,1797.8,1797.6,2.8324]
[1745660469552,1.112,1797.8,1797.7,1.6925]
[1745660470153,2.8593,1797.8,1797.7,1.6925]
[1745660471455,3.2078,1797.9,1797.7,1.6925]
[1745660471456,3.2078,1797.9,1797.8,1.112]
[1745660472054,6.0223,1798.3,1797.7,1.6925]
[1745660472055,9.2301,1798.3,1797.7,1.6925]
[1745660472255,3.2078,1798.3,1798.2,1.11175]
[1745660472658,12.23337918,1798.3,1798.2,1.11175]
[1745660473152,12.23337918,1798.3,1797.9,1.7626]
[1745660473153,13.34506918,1798.3,1798.1,1.11178]
[1745660473353,13.34506918,1798.3,1798.2,1.7626]
[1745660473556,12.23337918,1798.3,1798.2,2.87435]
[1745660474257,13.34506918,1798.3,1798.2,1.7626]
[1745660474950,1.11191,1798.0,1797.5,3.2078]
[1745660475255,3.2078,1798.1,1797.6,1.7626]
[1745660475550,3.2078,1798.1,1798.0,1.11187]
[1745660475752,12.23337918,1798.3,1797.6,1.7626]
[1745660475951,4.9547,1798.1,1797.7,1.6605]
[1745660476152,4.9547,1798.1,1797.8,1.11198]
[1745660476153,1.1119,1798.0,1797.8,1.11198]
[1745660476353,1.1119,1798.0,1797.9,1.6605]
[1745660477653,1.11187,1798.0,1797.9,1.6605]
[1745660478146,12.23337918,1798.3,1797.9,1.6605]
[1745660478351,1.11187,1798.0,1797.9,1.6605]
[1745660479258,1.11176,1798.2,1798.0,1.11182]
[1745660479457,1.11176,1798.2,1798.1,1.7279]
[1745660479654,2.85866,1798.2,1798.1,1.7279]
[1745660482153,1.7469,1798.2,1797.7,1.11205]
[1745660482352,1.7469,1798.2,1797.5,6.6882]
[1745660482353,1.11194,1797.9,1797.8,1.7095]
[1745660483356,2.90494,1797.9,1797.8,1.7095]
[1745660483554,1.793,1797.9,1797.5,7.80038]
[1745660483762,1.112,1797.8,1797.7,1.7095]
[1745660485668,1.793,1797.9,1797.7,2.82156]
[1745660485857,1.112,1797.8,1797.7,1.7095]
[1745660486059,3.2078,1798.0,1797.7,1.7095]
[1745660486258,4.31969,1798.0,1797.8,1.11194]
[1745660486464,3.2078,1798.0,1797.9,2.80394]
[1745660486961,3.2078,1798.3,1797.9,6.692]
[1745660487157,3.2078,1798.3,1798.2,1.11175]
[1745660488559,1.11175,1798.2,1798.1,1.692]
[1745660488865,4.9793,1798.3,1798.1,1.692]
[1745660489161,1.11175,1798.2,1798.1,1.692]
[1745660491456,2.89545,1798.2,1798.1,1.692]
[1745660491657,1.11194,1797.9,1797.8,4.273]
[1745660491956,1.11191,1798.0,1797.8,5.385]
[1745660492161,1.11194,1797.9,1797.8,4.273]
[1745660492962,1.11194,1797.9,1797.8,5.9537]
[1745660493562,1.11192,1798.0,1797.8,7.0657]
[1745660493954,1.11194,1797.9,1797.8,4.273]
[1745660494560,7.29867246,1797.9,1797.8,5.385]
[1745660496273,8.41061246,1797.9,1797.8,4.273]
[1745660496767,8.41061246,1797.9,1797.7,1.11206]
[1745660496966,1.11206,1797.7,1797.6,3.4482]
[1745660497271,12.29807246,1797.9,1797.6,4.5603]
[1745660497467,1.11206,1797.7,1797.6,3.4482]
[1745660497670,1.11206,1797.7,1797.6,4.56032]
[1745660498069,1.11204,1797.8,1797.6,4.56032]
[1745660498370,1.11206,1797.7,1797.6,3.4482]
[1745660498571,4.9994,1797.9,1797.6,4.56026]
[1745660498572,1.11203,1797.8,1797.6,4.56026]
[1745660498769,4.9994,1797.9,1797.6,3.4482]
[1745660498969,1.11202,1797.8,1797.6,4.56029]
[1745660500173,1.11206,1797.7,1797.6,3.4482]
[1745660500365,1.11206,1797.7,1797.6,1.7078]
[1745660500765,1.11206,1797.7,1797.4,5.38421]
[1745660500766,1.11218,1797.5,1797.4,4.272]
[1745660500966,1.11218,1797.5,1797.2,2.80315]
[1745660500967,1.11227,1797.4,1797.2,2.80315]
[1745660501263,3.2078,1797.7,1797.2,1.6908]
[1745660501467,1.11213,1797.6,1797.4,1.11221]
[1745660502975,3.2078,1797.7,1797.2,1.6908]
[1745660503277,1.11218,1797.5,1797.3,1.11226]
[1745660503571,1.11218,1797.5,1797.4,1.11225]
[1745660504073,1.11217,1797.6,1797.4,1.11225]
[1745660504473,1.11218,1797.5,1797.4,1.11225]
[1745660504775,1.11216,1797.6,1797.4,1.11225]
[1745660504974,1.1122,1797.5,1797.3,1.11227]
[1745660505164,1.11226,1797.4,1797.2,2.80313]
[1745660505368,1.11231,1797.3,1797.2,1.6908]
[1745660506266,3.2078,1797.5,1797.2,2.80317]
[1745660506267,1.11229,1797.4,1797.2,2.80317]
[1745660506771,1.11231,1797.3,1797.2,1.6908]
[1745660507882,1.6792,1797.4,1797.1,2.83781]
[1745660508070,1.11237,1797.2,1797.1,1.7254]
[1745660508473,1.11237,1797.2,1797.0,5.38449]
[1745660508970,1.11241,1797.2,1797.0,1.11249]
[1745660509581,12.33518987,1797.3,1797.1,1.11243]
[1745660509777,12.33518987,1797.3,1797.2,1.11237]
[1745660510178,12.33518987,1797.3,1797.1,1.11239]
[1745660510877,12.33518987,1797.3,1797.2,1.11237]
[1745660511476,12.33518987,1797.3,1796.9,1.7179]
[1745660511680,12.33518987,1797.3,1797.1,1.1124]
[1745660511975,9.12738987,1797.2,1797.1,1.1124]
[1745660512976,9.12738987,1797.2,1797.1,13.5902]
[1745660513176,11.01559327,1797.6,1797.5,1.11218]
[1745660514076,11.01559327,1797.6,1797.5,10.38218]
[1745660514283,9.75698316,1797.6,1797.5,10.38218]
[1745660514481,5.57165316,1797.6,1797.5,12.11028]
[1745660514680,12.85152548,1797.8,1797.7,1.11206]
[1745660514877,12.85152548,1797.8,1797.7,4.31986]
[1745660515077,12.85152548,1797.8,1797.7,9.31986]
[1745660516978,11.69086548,1797.8,1797.7,9.31986]
[1745660518786,8.64375548,1797.8,1797.7,9.31986]
[1745660518986,5.48261071,1798.0,1797.9,1.11194]
[1745660519286,2.66892071,1798.0,1797.9,8.58874]
[1745660519482,0.44411071,1798.0,1797.9,13.58874]
[1745660519685,3.2078,1798.6,1797.9,12.4768]
[1745660519883,4.8958,1798.8,1798.7,1.11144]
[1745660520384,4.8958,1798.8,1798.6,1.11148]
[1745660520588,4.8958,1798.8,1798.4,4.269]
[1745660520782,3.2078,1798.6,1798.4,4.269]
[1745660520983,1.7173,1798.5,1798.4,4.269]
[1745660521292,2.82888,1798.5,1798.3,1.11165]
[1745660521679,1.7173,1798.5,1798.4,1.11163]
[1745660522289,4.31935,1798.6,1798.4,1.11163]
[1745660522484,3.2078,1798.6,1798.5,1.11157]
[1745660522685,4.31931,1798.6,1798.4,1.11158]
[1745660522886,3.2078,1798.6,1798.2,4.269]
[1745660523286,3.2078,1798.6,1798.0,4.9136]
[1745660523287,3.2078,1798.4,1798.0,4.9136]
[1745660523488,1.11178,1798.2,1798.0,8.58765]
[1745660523989,2.86748,1798.2,1798.0,8.58765]
[1745660524188,2.86748,1798.2,1797.8,3.2078]
[1745660524189,1.7557,1798.2,1797.8,3.2078]
[1745660524390,1.11183,1798.1,1797.9,1.11191]
[1745660524592,4.9635,1798.2,1797.8,4.268]
[1745660524783,1.11186,1798.1,1797.9,2.93814]
[1745660524980,3.2078,1798.2,1797.9,1.8262]
[1745660525587,3.2078,1798.2,1798.1,1.11181]
[1745660526282,3.2078,1798.4,1798.3,1.11165]
[1745660527592,8.2078,1798.4,1798.1,1.8262]
[1745660527793,2.89831,1798.3,1798.1,2.93799]
[1745660527983,2.89831,1798.3,1798.2,1.7042]
[1745660528183,1.11179,1798.2,1798.0,1.11184]
[1745660528488,2.89837,1798.2,1798.0,1.11187]
[1745660528685,2.89837,1798.2,1798.1,1.7042]
[1745660528883,2.89837,1798.2,1798.1,2.81601]
[1745660529080,2.89837,1798.2,1798.1,1.7042]
[1745660529393,1.11184,1798.1,1797.9,1.11192]
[1745660529588,1.11179,1798.2,1797.9,1.7042]
[1745660529779,1.11179,1798.2,1798.0,1.11186]
[1745660529978,1.11179,1798.2,1798.1,1.7042]
[1745660530184,4.9944,1798.4,1798.1,1.7042]
[1745660530383,1.11175,1798.2,1798.1,1.7042]
[1745660530990,1.11175,1798.2,1798.0,1.11187]
[1745660530991,1.11178,1798.2,1798.0,1.11187]
[1745660532288,1.11186,1798.1,1797.9,1.1119]
[1745660532489,2.89006,1798.1,1797.9,2.8898]
[1745660532989,4.77916,1798.1,1797.9,2.8898]
[1745660533181,1.11187,1798.0,1797.9,1.7779]
[1745660533592,4.77916,1798.1,1797.9,2.88984]
[1745660534093,4.77916,1798.1,1798.0,1.11187]
[1745660534295,4.77916,1798.1,1798.0,2.82277]
[1745660534501,4.77916,1798.1,1798.0,1.7109]
[1745660536492,4.77911,1798.1,1798.0,1.7109]
[1745660537386,3.6673,1798.1,1798.0,2.82277]
[1745660537586,4.77911,1798.1,1798.0,2.82277]
[1745660538899,4.77911,1798.1,1798.0,1.7109]
[1745660539196,2.78,1797.8,1796.9,4.263]
[1745660539394,1.11231,1797.3,1797.2,1.7999]
[1745660539692,1.11225,1797.4,1797.2,2.91225]
[1745660539894,1.11231,1797.3,1797.2,1.7999]
[1745660540090,2.89978,1797.4,1797.2,1.7999]
[1745660540281,1.7875,1797.4,1797.2,1.7999]
[1745660540485,2.89976,1797.4,1797.2,2.91225]
[1745660542382,2.77979,1798.0,1797.2,2.91225]
[1745660542383,3.2078,1797.8,1797.4,1.11225]
[1745660542587,6.843,1798.0,1797.9,1.11194]
[1745660542894,1.8477,1798.0,1797.9,1.11194]
[1745660543094,1.7131,1798.2,1798.0,1.11182]
[1745660543394,1.7131,1798.2,1798.1,1.7608]
[1745660543595,2.82485,1798.2,1798.1,1.7608]
[1745660543891,6.03265,1798.2,1798.1,1.7608]
[1745660548101,4.31955,1798.2,1798.1,1.7608]
[1745660548399,3.2078,1798.2,1798.1,1.7608]
[1745660548600,3.2078,1798.2,1798.1,2.87261]
[1745660548795,4.31955,1798.2,1798.1,1.7608]
[1745660550396,15.27788159,1798.2,1798.1,1.7608]
[1745660551391,15.27788159,1798.2,1797.8,6.0284]
[1745660551392,1.11194,1797.9,1797.8,6.0284]
[1745660551593,1.11194,1797.9,1797.8,7.861]
[1745660551804,1.11194,1797.9,1797.8,3.598]
[1745660552801,1.11194,1797.9,1797.8,1.8326]
[1745660553502,4.31972,1798.0,1797.8,2.9446]
[1745660554003,4.31972,1798.0,1797.9,1.7072]
[1745660556394,4.31967,1798.0,1797.9,1.7072]
[1745660559001,10.98756,1798.0,1797.5,4.263]
[1745660559303,3.2078,1797.7,1797.5,1.11216]
[1745660559605,4.31986,1797.7,1797.6,1.8496]
[1745660563103,3.2078,1797.7,1797.6,1.8496]
[1745660563306,3.2078,1797.7,1797.6,2.96172]
[1745660563508,3.2078,1798.1,1797.6,6.8496]
[1745660563698,4.31965,1798.1,1797.9,1.11192]
[1745660563899,4.31965,1798.1,1798.0,1.7853]
[1745660564495,10.95833159,1798.2,1798.1,1.11181]
[1745660564710,10.95833159,1798.2,1798.1,2.96841]
[1745660565300,10.95833159,1798.2,1798.1,1.8566]
[1745660565801,12.07008159,1798.2,1798.1,1.8566]
[1745660566001,10.95833159,1798.2,1798.1,7.96841]
[1745660566308,7.00145159,1798.2,1798.1,7.96841]
[1745660567196,0.14589159,1798.2,1798.1,7.96841]
[1745660567404,30.15776072,1798.3,1798.2,1.11175]
[1745660567698,28.94863072,1798.3,1798.2,8.57755]
[1745660567899,12.78472019,1798.5,1798.4,1.11163]
[1745660568095,12.78472019,1798.5,1798.4,4.31943]
[1745660568302,12.78472019,1798.5,1798.4,9.31943]
[1745660570411,12.78472019,1798.5,1798.4,11.19503]
[1745660571808,10.70899769,1798.6,1798.5,1.11157]
[1745660572004,12.79238483,1799.1,1799.0,1.11126]
[1745660572205,9.18058483,1799.1,1799.0,8.57606]
[1745660572410,7.14921483,1799.1,1799.0,13.57606]
[1745660572609,3.12741483,1799.1,1799.0,13.57606]
[1745660573110,3.12741483,1799.1,1799.0,15.44886]
[1745660573905,4.83e-06,1799.1,1799.0,15.44886]
[1745660574905,4.83e-06,1799.1,1799.0,17.22946]
[1745660576112,3.2078,1799.7,1799.4,1.11096]
[1745660576406,2.86744,1799.6,1799.0,12.22946]
[1745660576607,1.7565,1799.6,1799.5,1.11095]
[1745660577506,6.7565,1799.6,1799.2,1.7284]
[1745660577716,1.11098,1799.5,1799.3,1.11106]
[1745660578012,3.5838,1799.4,1799.3,1.11106]
[1745660578511,4.31865,1799.7,1799.5,1.11092]
[1745660578703,6.07514,1799.7,1799.5,1.11089]
[1745660579110,4.9643,1799.7,1799.6,1.11089]
[1745660580612,3.2078,1799.7,1799.6,1.11089]
[1745660581005,3.6296,1799.8,1799.7,1.11082]
[1745660581611,4.74039,1799.8,1799.6,2.88044]
[1745660581910,4.74039,1799.8,1799.6,1.11084]
[1745660582111,4.74039,1799.8,1799.5,1.8921]
[1745660582112,1.11082,1799.7,1799.5,1.11091]
[1745660582413,1.8768,1799.6,1799.5,1.11091]
[1745660582805,1.8768,1799.6,1799.5,2.94001]
[1745660584318,1.8273,1799.8,1799.7,1.11082]
[1745660585016,3.7041,1799.8,1799.7,1.11082]
[1745660585818,6.9119,1799.8,1799.5,1.8291]
[1745660586116,6.9119,1799.8,1799.4,4.255]
[1745660586311,1.11104,1799.4,1799.2,1.11111]
[1745660586514,4.60187,1799.3,1799.1,8.57294]
[1745660587017,1.11113,1799.2,1799.1,7.4618]
[1745660587212,1.11127,1799.0,1798.8,1.11135]
[1745660587412,1.7599,1798.9,1798.8,1.11135]
[1745660587811,1.7599,1798.9,1798.8,1.11138]
[1745660588122,1.7599,1798.9,1798.7,1.1114]
[1745660588414,1.7309,1798.8,1798.7,1.1114]
[1745660590813,1.7599,1798.9,1798.8,1.11138]
[1745660591115,3.2078,1799.0,1798.9,1.11132]
[1745660592218,4.9334,1799.0,1798.9,1.11132]
[1745660593913,1.7256,1799.0,1798.9,1.11132]
[1745660602330,9.9334,1799.0,1798.7,1.8115]
[1745660602625,4.9334,1799.0,1798.9,1.11132]
[1745660602831,1.7256,1799.0,1798.9,1.11132]
[1745660603034,1.8312,1799.2,1798.8,7.02741]
[1745660603228,1.8312,1799.2,1799.1,1.1112]
[1745660605022,1.8312,1799.2,1799.1,2.8292]
[1745660606130,4.31888,1799.3,1799.1,2.8292]
[1745660606434,5.0759,1799.3,1799.2,2.82913]
[1745660606735,6.18697,1799.3,1799.2,1.718]
[1745660607138,5.0759,1799.3,1799.2,2.82913]
[1745660607827,6.18697,1799.3,1799.2,1.718]
[1745660608633,5.0759,1799.3,1799.2,2.82913]
[1745660610733,1.11116,1799.2,1799.0,1.11123]
[1745660610936,1.7352,1799.1,1799.0,2.98573]
[1745660611628,2.8464,1799.1,1798.9,1.11128]
[1745660612029,1.11126,1799.0,1798.8,7.4568]
[1745660612230,1.7352,1798.9,1798.8,8.56818]
[1745660613039,1.7044,1799.0,1798.9,1.11132]
[1745660613233,1.7044,1799.0,1798.9,2.96402]
[1745660613533,2.84146,1799.2,1799.0,1.11121]
[1745660613839,1.7303,1799.2,1799.1,2.9639]
[1745660614828,3.2078,1799.3,1799.2,1.11113]
[1745660615032,1.8907,1799.5,1799.4,1.11101]
[1745660615635,1.8907,1799.5,1799.4,2.82541]
[1745660616639,2.84108,1799.8,1799.6,1.11086]
[1745660616943,4.71398,1799.8,1799.6,1.11086]
[1745660617140,3.6032,1799.8,1799.7,1.11082]
[1745660617529,3.6032,1799.8,1799.4,1.7144]
[1745660617734,4.9915,1799.7,1799.3,1.11105]
[1745660617936,1.11101,1799.4,1799.2,5.3601]
[1745660618142,1.11111,1799.3,1799.1,2.82558]
[1745660618335,1.8729,1799.2,1799.1,2.82558]
[1745660618644,2.88321,1799.4,1799.2,1.11109]
[1745660618846,7.96391,1799.4,1799.2,1.11109]
[1745660619842,6.8529,1799.4,1799.3,1.11107]
[1745660620033,3.6451,1799.4,1799.3,1.11107]
[1745660620543,1.8729,1799.4,1799.3,1.11107]
[1745660622140,1.714,1799.6,1799.4,1.11101]
[1745660622346,1.714,1799.6,1799.5,1.11095]
[1745660626348,4.31852,1799.9,1799.5,2.77738]
[1745660626540,4.31852,1799.9,1799.4,7.4558]
[1745660626541,1.11077,1799.8,1799.4,9.2404]
[1745660626736,1.7736,1799.8,1799.7,1.11082]
[1745660627345,1.7736,1799.8,1799.4,9.2404]
[1745660627649,2.88438,1799.8,1799.7,1.11082]
[1745660627849,2.88436,1799.8,1799.6,1.11084]
[1745660628050,2.88436,1799.8,1799.4,6.0326]
[1745660628441,1.7736,1799.8,1799.7,1.11082]
[1745660628647,3.2078,1799.9,1799.8,1.11076]
[1745660629454,1.7136,1799.9,1799.8,1.11076]
[1745660630750,1.7136,1799.9,1799.4,9.2404]
[1745660631048,3.2078,1799.7,1799.3,1.11104]
[1745660631249,4.31879,1799.5,1799.3,1.11104]
[1745660631449,1.11101,1799.4,1799.2,7.4488]
[1745660631651,1.11107,1799.3,1799.2,5.35209]
[1745660631852,2.97465,1799.4,1799.3,1.11107]
[1745660632151,2.97461,1799.4,1799.3,1.11107]
[1745660632454,1.8636,1799.4,1799.3,1.11107]
[1745660634748,1.8636,1799.4,1799.3,2.82337]
[1745660636558,3.2078,1799.5,1799.4,1.11101]
[1745660636962,4.31877,1799.5,1799.3,3.5545]
[1745660637150,6.15327,1799.5,1799.3,2.82335]
[1745660638057,6.15327,1799.5,1799.4,1.11101]
[1745660638256,5.0423,1799.5,1799.4,1.11101]